fUSD/lending_fUSD_20251112
["ID","MTS","AMOUNT","RATE_DAILY","PERIOD"]
[393780243,1762978239857,-2031.0,0.0004,2]
[393780245,1762978239867,-2031.0,0.0004,2]
[393780247,1762978239877,-666.0,0.00040013,120]
[393780249,1762978239886,-316.47033406,0.0004011,2]
[393780251,1762978239896,-219.57596307,0.00040171,2]
[393780253,1762978239905,-12080.3263,0.00040287,2]
[393780255,1762978239915,-1000.0,0.00040287,2]
[393780257,1762978239924,-15400.0,0.000403,14]
[393780259,1762978239936,-5800.0,0.00040343,14]
[393780261,1762978239946,-500.0,0.00040386,20]
[393780263,1762978239955,-500.0,0.00040386,20]
[393780265,1762978239965,-9998.9052,0.00040388,2]
[393780267,1762978239974,-5000.0,0.000404,120]
[393780269,1762978239984,-3000.0,0.000404,14]
[393780271,1762978239995,-168.23409936,0.00040418,28]
[393780273,1762978240012,-375.72356148,0.00040418,8]
[393780275,1762978240022,-1348.62061478,0.00040418,2]
[393780277,1762978240033,-360.84756809,0.00040418,2]
[393780279,1762978240043,-525.4170101,0.00040418,15]
[393780281,1762978240052,-37887.99449207,0.00040418,15]
[393780283,1762978240062,-666.0,0.00040421,7]
[393780285,1762978240071,-503.16454672,0.00040447,2]
[393780287,1762978240080,-150.105,0.00040448,2]
[393780289,1762978240090,-150.0,0.00040448,2]
[393780291,1762978240099,-150.128,0.00040448,2]
[393780294,1762978240109,-150.0,0.00040448,2]
[393780295,1762978240118,-261.688,0.00040448,2]
[393780296,1762978240127,-608.0,0.00040448,2]
[393780297,1762978240137,-3427.0,0.00040448,2]
[393780298,1762978240146,-1317.0,0.00040448,2]
[393780299,1762978240155,-339.0,0.00040466,120]
[393780300,1762978240164,-151.0,0.00040481,14]
[393780301,1762978240174,-500.0,0.00040483,15]
[393780302,1762978240353,-500.0,0.00040483,15]
[393780303,1762978240363,-500.0,0.00040483,15]
[393780304,1762978240372,-332.59097415,0.00040483,15]
[393780305,1762978240382,-227067.83126555,0.00040484,2]
[393780306,1762978240396,-2251.83866918,0.00040484,2]
[393780307,1762978240424,-500.0,0.00027097,2]
[393780308,1762978240435,-6482.0,0.00038302,2]
[393780309,1762978240444,-31812.46984297,0.00040484,2]
[393780310,1762978240453,-27914.2555137,0.00040484,2]
[393780311,1762978240463,-67747.9291464,0.00040484,2]
[393780312,1762978240472,-228.7193409,0.00040487,2]
[393780313,1762978240482,-2000.0,0.00040487,30]
[393780314,1762978240491,-2000.0,0.00040487,30]
[393780315,1762978240501,-200.0,0.00040487,7]
[393780316,1762978240510,-151.0,0.00040488,120]
[393780317,1762978240519,-151.0,0.00040488,120]
[393780318,1762978240533,-1235.92858325,0.00040488,7]
[393780319,1762978240542,-200.0,0.00040488,7]
[393780320,1762978240552,-2758.26565,0.00040488,4]
[393780321,1762978240561,-150.0,0.000405,60]
[393780322,1762978240571,-1398.0,0.000405,30]
[393780323,1762978240580,-9430.45,0.000405,14]
[393780324,1762978240589,-395.0,0.000405,3]
[393780325,1762978240598,-297.35,0.000405,30]
[393780326,1762978240608,-3000.0,0.000405,14]
[393780327,1762978240618,-151.03,0.00040508,2]
[393780328,1762978240627,-151.03,0.00040508,2]
[393780329,1762978240637,-151.03,0.00040508,2]
[393780330,1762978240646,-200.0,0.00040514,7]
[393780331,1762978240656,-200.0,0.00040514,7]
[393780332,1762978240665,-300.0,0.00040517,10]
[393780333,1762978240675,-57985.63409059,0.00040517,29]
[393780334,1762978240687,-328129.12196577,0.00040518,7]
[393780335,1762978240698,-571.93679383,0.00040518,7]
[393780336,1762978240801,-500.0,0.00027097,2]
[393780337,1762978240810,-123.51413235,0.00027097,2]
[393780338,1762978240821,-67.38709984,0.00027097,2]
[393780339,1762978240831,-500.0,0.00027097,2]
[393780340,1762978240840,-500.0,0.00027097,2]
[393780341,1762978240849,-4367.25194469,0.00040518,7]
[393780342,1762978240861,-1023.15767363,0.00040518,7]
[393780343,1762978240872,-3545696.87545898,0.00040518,7]
[393780344,1762978240883,-550.605,0.00040518,7]
[393780345,1762978240894,-6806619.82923054,0.00040518,7]
[393780349,1762978242514,-858.41742724,0.00026401,2]
[393780402,1762978245790,-281.85292017,0.00026401,2]
[393780415,1762978382906,150.20363168,0.00028252,120]
[393780416,1762978383792,2500.0,0.00028252,120]
[393780417,1762978383901,340.90982863,0.00025685,120]
[393780418,1762978385941,300.0,0.00028252,120]
[393780419,1762978386054,174.48774531,0.00025685,120]
[393780420,1762978446592,195.0,0.00028252,120]
[393780421,1762978446698,195.0,0.00025685,120]
[393780422,1762978446811,195.0,0.00028275,120]
[393780423,1762978509259,195.0,0.00028252,120]
[393780424,1762978625989,200.0,0.00040518,60]
[393780425,1762978626580,151.0,0.00040518,60]
[393780426,1762978626623,200.0,0.00040518,60]
[393780427,1762978627300,151.0,0.00040518,60]
[393780428,1762978627923,151.0,0.00040518,60]
[393780429,1762978628543,151.0,0.00040518,60]
[393780430,1762978629144,151.0,0.00040518,60]
[393780431,1762978629745,151.0,0.00040518,60]
[393780432,1762978630417,151.0,0.00040518,60]
[393780433,1762978631091,151.0,0.00040518,60]
[393780434,1762978631871,151.0,0.00040518,60]
[393780435,1762978632467,151.0,0.00040518,60]
[393780436,1762978633531,151.0,0.00040518,60]
[393780437,1762978638618,200.0,0.00040518,60]
[393780438,1762978722367,250.0,0.00017,2]
[393780440,1762978933411,-300.0,0.00019,2]
[393780441,1762978933449,-250.0,0.0002,2]
[393780442,1762978933484,-250.0,0.000209,2]
[393780443,1762978933520,-350.0,0.00021,2]
[393780444,1762978933553,-250.0,0.00022807,2]
[393780445,1762978933589,-300.0,0.00023,2]
[393780446,1762978933603,-100.0,0.00023,2]
[393780447,1762978933612,-200.0,0.00025251,2]
[393780448,1762978933624,-250.0,0.00025251,2]
[393780449,1762978933635,-206.09334487,0.00025251,2]
[393780450,1762978933645,-43.90665513,0.00025351,2]
[393780451,1762978933656,-210.24334487,0.00025351,2]
[393780452,1762978933666,-139.75665513,0.00025685,2]
[393780453,1762978933681,-250.0,0.00025685,2]
[393780454,1762978933696,-110.24334487,0.00025685,2]
[393780455,1762978933705,-289.75665513,0.00026401,2]
[393780457,1762979038930,4736.6968736,0.0004052,30]
[393780458,1762979070656,2000.0,0.0004052,30]
[393780459,1762979108391,10000.01,0.00018,2]
[393780460,1762979108414,10000.01,0.00018,2]
[393780461,1762979108438,10000.01,0.00018,2]
[393780462,1762979108463,10000.01,0.00018,2]
[393780463,1762979108486,10000.01,0.00018,2]
[393780464,1762979108509,10000.01,0.00018,2]
[393780465,1762979108533,10000.01,0.00018,2]
[393780466,1762979108556,10000.01,0.00018,2]
[393780467,1762979108583,2729642.40120072,0.00018,2]
[393780468,1762979118013,-664295.83664066,0.00018,2]
[393780470,1762979212248,10000.01,0.000162,5]
[393780471,1762979212270,10000.01,0.000162,5]
[393780472,1762979212296,10000.01,0.000162,5]
[393780473,1762979212317,10000.01,0.000162,5]
[393780474,1762979212338,10000.01,0.000162,5]
[393780475,1762979212358,10000.01,0.000162,5]
[393780476,1762979212380,7341.32212982,0.000162,5]
[393780477,1762979227686,5876.290019,7.945e-05,2]
[393780478,1762979270211,4123.719981,0.00017,2]
[393780479,1762979270238,10000.01,0.00017,2]
[393780480,1762979270262,10000.01,0.00017,2]
[393780481,1762979270286,10000.01,0.00017,2]
[393780482,1762979270309,10000.01,0.00017,2]
[393780483,1762979270333,639423.30901051,0.00017,2]
[393780484,1762979288284,1871.57486,7.945e-05,2]
[393780498,1762979431545,-1011.1562811,0.00019839,2]
[393780500,1762979431558,-190.17079275,0.00019839,2]
[393780501,1762979431568,-250.0,0.00019939,2]
[393780502,1762979431578,-856.43620111,0.00019989,2]
[393780503,1762979431589,-343.56379889,0.00019989,2]
[393780504,1762979431598,-1200.0,0.00019989,2]
[393780505,1762979431608,-300.0,0.00019989,2]
[393780506,1762979431618,-11356.50801346,0.0001999,2]
[393780507,1762979431630,-832.28589259,0.0001999,2]
[393780508,1762979431666,-18924.4316669,0.0001999,2]
[393780509,1762979431675,-250.0,0.0002066,2]
[393780510,1762979431686,-437.39556326,0.00021666,2]
[393780511,1762979431697,-1680.0,0.00021766,2]
[393780512,1762979431706,-420.0,0.00021766,2]
[393780513,1762979431715,-1680.0,0.00021871,2]
[393780514,1762979431724,-250.0,0.00021878,2]
[393780515,1762979431733,-500.0,0.00023667,2]
[393780516,1762979431742,-500.0,0.00023667,2]
[393780517,1762979431750,-500.0,0.00023667,2]
[393780518,1762979431759,-1875.0,0.00023701,2]
[393780519,1762979431768,-587.0,0.00023701,2]
[393780520,1762979431778,-2351.0,0.00023929,2]
[393780521,1762979431787,-437.39556324,0.00023984,2]
[393780522,1762979431796,-1541.0,0.00024214,2]
[393780523,1762979431805,-532.75071884,0.00024215,2]
[393780524,1762979431814,-1000.0,0.00024215,2]
[393780525,1762979431823,-500.0,0.00024215,2]
[393780526,1762979431833,-491.00198202,0.00024763,2]
[393780527,1762979431841,-999.0,0.00024958,3]
[393780528,1762979431851,-601.8593065,0.00025,2]
[393780529,1762979431860,-205.19004037,0.00025,2]
[393780530,1762979431870,-1764.78354744,0.00025,2]
[393780531,1762979431879,-4747.03738041,0.00025,3]
[393780532,1762979431889,-360.0,0.00025,2]
[393780533,1762979431898,-6305.52238011,0.00025,15]
[393780534,1762979431908,-1498.39367803,0.00025,2]
[393780535,1762979431918,-12399.10154954,0.00025879,2]
[393780536,1762979431928,-4472.17470445,0.00026,2]
[393780537,1762979431938,-80.86515339,0.00026,2]
[393780538,1762979431951,-21068.09212464,0.00026,2]
[393780539,1762979431963,-4138.65,0.00026,2]
[393780540,1762979431972,-213.97945674,0.00026,2]
[393780541,1762979431982,-161.06582473,0.00026,2]
[393780542,1762979431991,-1279.73700175,0.00026182,2]
[393780543,1762979432004,-2012.26299825,0.00026182,2]
[393780544,1762979432013,-268.34,0.00026223,2]
[393780545,1762979432023,-437.39556324,0.00026301,2]
[393780546,1762979432032,-27169.54666906,0.000264,2]
[393780548,1762979432042,-1542.87299746,0.00026401,2]
[393780550,1762979432051,-250.0,0.00027,2]
[393780551,1762979432060,-1021.7657068,0.00027,2]
[393780552,1762979432069,-530.0,0.00027,2]
[393780553,1762979432079,-4062.92683639,0.0002739,2]
[393780554,1762979432088,-8026.35628533,0.0002739,2]
[393780555,1762979432097,-198.73424594,0.000275,2]
[393780556,1762979432106,-542.89662444,0.000275,2]
[393780557,1762979432115,-513.09,0.00027587,2]
[393780558,1762979432124,-1429.21700296,0.00027777,2]
[393780559,1762979432134,-36617.30981004,0.000279,2]
[393780560,1762979432143,-679.37143002,0.000279,2]
[393780561,1762979432152,-500.0,0.00027973,5]
[393780562,1762979432161,-49681.72926608,0.0002799,3]
[393780563,1762979432173,-1191.45176067,0.0002799,3]
[393780564,1762979432193,-355.55300025,0.0002799,3]
[393780565,1762979432204,-391.2107439,0.0002799,3]
[393780566,1762979432216,-2904.14323361,0.0002799,3]
[393780567,1762979432228,-1335.80895032,0.0002799,3]
[393780569,1762979437502,-581.14077827,0.00019739,2]
[393780570,1762979437514,-18.45405073,0.00019739,2]
[393780571,1762979437523,-150.0,0.00024694,2]
[393780572,1762979437532,-453.63370584,0.00027199,2]
[393780573,1762979437610,-5142.07792383,0.00027199,2]
[393780574,1762979437620,-12462.20439331,0.0002799,3]
[393780575,1762979437664,-3636.82058928,0.0002799,3]
[393780576,1762979437675,-27794.04183958,0.0002799,3]
[393780577,1762979437685,-11569.8207217,0.0002799,3]
[393780578,1762979437695,-514.28691293,0.00027999,20]
[393780604,1762979437925,-70480.78498966,0.00028,2]
[393780606,1762979437934,-249785.0208026,0.00028,2]
[393780608,1762979437944,-50259.37813858,0.00028,2]
[393780610,1762979437954,-160.0,0.00028,2]
[393780612,1762979437964,-550.5908475,0.00028384,2]
[393780614,1762979437973,-11569.8207217,0.00028401,3]
[393780616,1762979437982,-11083.6626419,0.00028411,3]
[393780618,1762979437991,-11569.8207217,0.00028411,3]
[393780620,1762979438000,-20063.28599028,0.00028421,2]
[393780622,1762979438009,-435.7680253,0.00028421,2]
[393780624,1762979438018,-1000.0,0.00028521,5]
[393780626,1762979438027,-235.31,0.0002862,2]
[393780628,1762979438036,-4609.0,0.00028646,2]
[393780630,1762979438046,-478.56668374,0.00028959,2]
[393780632,1762979438059,-1928.20846484,0.00029,2]
[393780634,1762979438069,-11083.6626419,0.00029058,3]
[393780636,1762979438078,-1500.0,0.00029068,5]
[393780638,1762979438088,-385.02836156,0.0002919,2]
[393780640,1762979438098,-11569.8207217,0.00029271,3]
[393780642,1762979438107,-500.0,0.00029273,5]
[393780644,1762979438116,-500.0,0.00029273,5]
[393780646,1762979438126,-553.62035377,0.00029273,5]
[393780648,1762979438136,-500.0,0.00029273,5]
[393780649,1762979438145,-501.20050924,0.00029273,5]
[393780650,1762979438155,-500.0,0.00029273,5]
[393780651,1762979438165,-500.0,0.00029273,5]
[393780652,1762979438175,-500.0,0.00029273,5]
[393780653,1762979438185,-500.0,0.00029273,5]
[393780654,1762979438196,-397.36381746,0.0002928,2]
[393780655,1762979438208,-443.13217667,0.0002928,2]
[393780656,1762979438218,-649.71130622,0.0002928,2]
[393780657,1762979438228,-500.0,0.0002928,2]
[393780658,1762979438238,-500.0,0.0002928,2]
[393780659,1762979438250,-649.71130622,0.0002928,2]
[393780660,1762979438261,-500.0,0.0002928,2]
[393780661,1762979438271,-500.0,0.0002928,2]
[393780662,1762979438281,-649.71130622,0.0002928,2]
[393780663,1762979438291,-500.0,0.0002928,2]
[393780664,1762979438301,-649.71130622,0.0002928,2]
[393780665,1762979438311,-583.4456077,0.0002928,2]
[393780666,1762979438321,-212.42241486,0.0002928,2]
[393780667,1762979438331,-649.71130622,0.0002928,2]
[393780668,1762979438341,-649.71130622,0.0002928,2]
[393780669,1762979438351,-649.71130622,0.0002928,2]
[393780670,1762979438361,-649.71130622,0.0002928,2]
[393780671,1762979438371,-500.0,0.0002928,2]
[393780672,1762979438381,-649.71130622,0.0002928,2]
[393780673,1762979438391,-649.71130622,0.0002928,2]
[393780674,1762979438400,-649.71130622,0.0002928,2]
[393780675,1762979438410,-649.71130622,0.0002928,2]
[393780676,1762979438419,-649.71130622,0.0002928,2]
[393780677,1762979438428,-649.71130622,0.0002928,2]
[393780678,1762979438438,-649.71130622,0.0002928,2]
[393780679,1762979438448,-649.71130622,0.0002928,2]
[393780680,1762979438457,-649.71130622,0.0002928,2]
[393780681,1762979438467,-649.71130622,0.0002928,2]
[393780682,1762979438477,-649.71130622,0.0002928,2]
[393780683,1762979438486,-649.71130622,0.0002928,2]
[393780684,1762979438496,-649.71130622,0.0002928,2]
[393780685,1762979438505,-649.71130622,0.0002928,2]
[393780686,1762979438515,-649.71130622,0.0002928,2]
[393780687,1762979438524,-649.71130622,0.0002928,2]
[393780688,1762979438534,-649.71130622,0.0002928,2]
[393780689,1762979438543,-649.71130622,0.0002928,2]
[393780690,1762979438552,-649.71130622,0.0002928,2]
[393780691,1762979438562,-649.71130622,0.0002928,2]
[393780692,1762979438572,-649.71130622,0.0002928,2]
[393780693,1762979438583,-649.71130622,0.0002928,2]
[393780694,1762979438594,-649.71130622,0.0002928,2]
[393780695,1762979438603,-649.71130622,0.0002928,2]
[393780696,1762979438612,-649.71130622,0.0002928,2]
[393780697,1762979438621,-649.71130622,0.0002928,2]
[393780698,1762979438630,-649.71130622,0.0002928,2]
[393780699,1762979438653,-649.71130622,0.0002928,2]
[393780700,1762979438663,-649.71130622,0.0002928,2]
[393780701,1762979438673,-649.71130622,0.0002928,2]
[393780702,1762979438685,-649.71130622,0.0002928,2]
[393780703,1762979438695,-649.71130622,0.0002928,2]
[393780704,1762979438706,-649.71130622,0.0002928,2]
[393780705,1762979438715,-649.71130622,0.0002928,2]
[393780706,1762979438727,-649.71130622,0.0002928,2]
[393780707,1762979438736,-649.71130622,0.0002928,2]
[393780708,1762979438746,-649.71130622,0.0002928,2]
[393780709,1762979438756,-649.71130622,0.0002928,2]
[393780710,1762979438766,-649.71130622,0.0002928,2]
[393780711,1762979438776,-649.71130622,0.0002928,2]
[393780712,1762979438786,-649.71130622,0.0002928,2]
[393780713,1762979438796,-649.71130622,0.0002928,2]
[393780714,1762979438806,-649.71130622,0.0002928,2]
[393780715,1762979438816,-649.71130622,0.0002928,2]
[393780716,1762979438826,-649.71130622,0.0002928,2]
[393780717,1762979438836,-649.71130622,0.0002928,2]
[393780718,1762979438845,-649.71130622,0.0002928,2]
[393780719,1762979438856,-649.71130622,0.0002928,2]
[393780720,1762979438866,-11083.6626419,0.00029281,3]
[393780721,1762979438875,-11569.8207217,0.00029281,3]
[393780722,1762979438886,-36617.30981002,0.00029291,2]
[393780723,1762979438896,-268.34,0.00029648,2]
[393780724,1762979438907,-679.37142996,0.00029689,2]
[393780725,1762979438916,-11569.8207217,0.00029734,3]
[393780726,1762979438927,-11083.6626419,0.00029744,3]
[393780727,1762979438937,-11569.8207217,0.00029744,3]
[393780728,1762979438947,-20063.28599027,0.00029754,2]
[393780729,1762979438956,-435.76802525,0.00029754,15]
[393780730,1762979438965,-351.16553114,0.00029821,5]
[393780731,1762979438973,-1000.0,0.00029821,5]
[393780732,1762979438982,-503.66666773,0.00029821,5]
[393780733,1762979438991,-741.85895381,0.00029821,5]
[393780734,1762979439001,-77922.21965356,0.000299,2]
[393780735,1762979439011,-664.2,0.000299,7]
[393780736,1762979439020,-313.87,0.000299,7]
[393780737,1762979439030,-300.0,0.00029973,5]
[393780738,1762979439039,-11083.6626419,0.0002999,3]
[393780739,1762979439050,-23139.6414435,0.0002999,3]
[393780740,1762979439059,-234.27249477,0.0002999,2]
[393780741,1762979439069,-302.80827461,0.0003,2]
[393780742,1762979439078,-5650.73238875,0.0003,2]
[393780743,1762979439088,-4659.25568064,0.0003,2]
[393780744,1762979439097,-19626.70573325,0.0003,2]
[393780745,1762979439107,-1794.36088201,0.0003,2]
[393780746,1762979439117,-606.74422713,0.0003,2]
[393780747,1762979439127,-413.08048326,0.0003,2]
[393780748,1762979439137,-12570.97254113,0.0003,13]
[393780749,1762979439149,-160.95108458,0.0003,2]
[393780750,1762979439159,-385.02836154,0.00030084,2]
[393780751,1762979439170,-11083.6626419,0.0003012,3]
[393780752,1762979439180,-11569.8207217,0.0003012,3]
[393780753,1762979439190,-1059.72401433,0.0003013,2]
[393780754,1762979439205,-184.00961881,0.0003013,30]
[393780755,1762979439215,-13677.53201784,0.0003013,2]
[393780756,1762979439226,-625.89616411,0.0003013,2]
[393780757,1762979439236,-199.17427369,0.0003013,2]
[393780758,1762979439246,-1208.82075572,0.0003013,2]
[393780759,1762979439256,-7634.2517548,0.0003013,2]
[393780760,1762979439266,-162.70330822,0.0003013,20]
[393780761,1762979439277,-183.6531986,0.0003015,10]
[393780762,1762979439286,-357.95831871,0.00030368,5]
[393780763,1762979439296,-11569.8207217,0.00030662,3]
[393780764,1762979439306,-151.04,0.00030662,2]
[393780765,1762979439316,-220.81623409,0.00030662,2]
[393780766,1762979439327,-22167.3252838,0.00030672,3]
[393780767,1762979439337,-11569.8207217,0.00030672,3]
[393780768,1762979439347,-36617.30981002,0.00030682,2]
[393780769,1762979439357,-253.818939,0.0003084,2]
[393780770,1762979439367,-4274.00043756,0.00030888,60]
[393780771,1762979439377,-23139.6414435,0.0003093,3]
[393780772,1762979439387,-17210.25451721,0.0003094,3]
[393780773,1762979439402,-4987.25782081,0.0003094,3]
[393780774,1762979439414,-819.81225726,0.0003094,3]
[393780775,1762979439558,-6078.2989207,0.0003094,3]
[393780776,1762979439606,-937.05173113,0.0003094,3]
[393780777,1762979439689,-3218.31267859,0.0003094,3]
[393780778,1762979439699,-34709.4621652,0.0003094,3]
[393780779,1762979439709,-66494.79552558,0.0003095,2]
[393780780,1762979439720,-385.02836154,0.00030978,3]
[393780781,1762979439730,-11083.6626419,0.00031077,3]
[393780782,1762979439740,-11569.8207217,0.00031077,3]
[393780783,1762979439749,-20063.28599027,0.00031087,2]
[393780784,1762979439759,-435.76802525,0.00031087,15]
[393780785,1762979439768,-175.17,0.00031178,2]
[393780786,1762979439778,-6453.0,0.00031343,3]
[393780787,1762979439788,-11569.8207217,0.0003141,3]
[393780788,1762979439798,-8195.10754974,0.0003142,3]
[393780789,1762979439812,-2888.55509216,0.0003142,3]
[393780790,1762979439822,-6288.95060973,0.0003143,4]
[393780791,1762979439834,-861.7705192,0.0003143,4]
[393780792,1762979439848,-6548.82732371,0.0003143,4]
[393780793,1762979439858,-679.37142996,0.00031477,2]
[393780794,1762979439867,-1685.17337839,0.000315,120]
[393780795,1762979439879,-1468.39086634,0.00032,120]
[393780796,1762979439889,-3074.84820603,0.00032,7]
[393780798,1762979439899,-1089.27135671,0.00032,2]
[393780800,1762979439910,-508.85,0.00032,2]
[393780803,1762979439922,-504.63,0.00032,2]
[393780805,1762979439933,-344.7448576,0.00032,2]
[393780807,1762979439944,-1016.0,0.00032,2]
[393780809,1762979439982,-752.01206998,0.00032,2]
[393780810,1762979439991,-113.6367381,0.00032,120]
[393780811,1762979440003,-304.3632619,0.00032,120]
[393780812,1762979440013,-3915.8133183,0.00032,5]
[393780813,1762979440026,-11569.8207217,0.00032054,3]
[393780814,1762979440036,-11083.6626419,0.00032063,3]
[393780815,1762979440045,-11569.8207217,0.00032063,3]
[393780816,1762979440055,-36617.30981002,0.00032073,2]
[393780817,1762979440064,-313.87,0.000321,30]
[393780819,1762979440073,-150.0,0.00032188,5]
[393780820,1762979440082,-301.05745814,0.000322,2]
[393780821,1762979440092,-664.2,0.000322,7]
[393780822,1762979440102,-150.0,0.00032231,2]
[393780823,1762979440111,-882.4138929,0.000323,2]
[393780824,1762979440121,-11569.8207217,0.000324,3]
[393780825,1762979440132,-11083.6626419,0.00032411,3]
[393780826,1762979440142,-11569.8207217,0.00032411,3]
[393780827,1762979440152,-20063.28599027,0.00032421,2]
[393780828,1762979440162,-435.76802525,0.00032421,15]
[393780829,1762979440171,-182.78404564,0.00032735,5]
[393780830,1762979440181,-319.98014903,0.00033,2]
[393780831,1762979440190,-268.34,0.00033072,2]
[393780832,1762979440200,-3307.9478206,0.0003322,2]
[393780833,1762979440210,-679.37142996,0.00033266,2]
[393780834,1762979440221,-11083.6626419,0.00033454,3]
[393780835,1762979440231,-23139.6414435,0.00033454,3]
[393780836,1762979440240,-179.43741248,0.00033458,30]
[393780837,1762979440250,-36617.30981002,0.00033464,2]
[393780838,1762979440259,-11569.8207217,0.00033744,3]
[393780839,1762979440269,-20063.28599027,0.00033754,2]
[393780840,1762979440279,-435.76802525,0.00033754,15]
[393780841,1762979440289,-166.66,0.00033794,30]
[393780842,1762979440299,-11569.8207217,0.0003399,3]
[393780843,1762979440309,-17001.6566214,0.00034,2]
[393780844,1762979440319,-813.0,0.00034293,3]
[393780845,1762979440329,-166.66,0.00034506,30]
[393780846,1762979440339,-156.203307,0.0003452,20]
[393780847,1762979440348,-161.644429,0.0003452,20]
[393780848,1762979440358,-161.644429,0.0003452,20]
[393780849,1762979440367,-303.155328,0.0003452,20]
[393780850,1762979440376,-303.155328,0.0003452,20]
[393780851,1762979440386,-303.155328,0.0003452,20]
[393780852,1762979440395,-313.87,0.000346,30]
[393780853,1762979440405,-11569.8207217,0.00034846,3]
[393780854,1762979440415,-36617.30981002,0.00034856,2]
[393780855,1762979440424,-181.67660261,0.000349,120]
[393780856,1762979440434,-664.2,0.000349,14]
[393780857,1762979440443,-331.93547369,0.00035,14]
[393780858,1762979440452,-679.37142996,0.00035054,2]
[393780859,1762979440462,-11569.8207217,0.00035077,3]
[393780860,1762979440472,-20063.28599027,0.00035087,2]
[393780861,1762979440482,-435.76802525,0.00035087,15]
[393780862,1762979440492,-11569.8207217,0.00035207,3]
[393780863,1762979440502,-8251.37,0.00035217,2]
[393780864,1762979440512,-150.99,0.00035217,2]
[393780865,1762979440522,-9999.99,0.00035217,2]
[393780866,1762979440531,-166.66,0.00035217,30]
[393780867,1762979440541,-1101.01,0.00035558,30]
[393780868,1762979440550,-1000.0,0.00035616,5]
[393780869,1762979440560,-922.37053258,0.00035664,5]
[393780870,1762979440569,-860.13,0.00035754,5]
[393780871,1762979440579,-5432.94,0.0003578,2]
[393780872,1762979440589,-150.0,0.00035817,2]
[393780873,1762979440598,-150.0,0.00035817,120]
[393780874,1762979440608,-2700.0,0.000359,13]
[393780875,1762979440617,-166.66,0.00035929,30]
[393780876,1762979440626,-8939.41841322,0.00036,120]
[393780877,1762979440638,-874.26,0.00036011,5]
[393780878,1762979440648,-280.09,0.0003605,2]
[393780879,1762979440658,-2530.68,0.00036077,2]
[393780880,1762979440668,-66538.33866894,0.000361,2]
[393780881,1762979440679,-2500.0,0.00036179,2]
[393780882,1762979440688,-3745.0,0.000362,5]
[393780883,1762979440697,-4499.67,0.00036234,2]
[393780884,1762979440707,-36617.30981002,0.00036247,2]
[393780885,1762979440718,-395.25909271,0.00036258,30]
[393780886,1762979440728,-313.87,0.000363,30]
[393780887,1762979440739,-175.17,0.00036374,2]
[393780888,1762979440749,-664.2,0.000364,14]
[393780889,1762979440758,-151.0,0.00036417,14]
[393780890,1762979440768,-20063.28599027,0.0003642,2]
[393780891,1762979440778,-435.76802525,0.0003642,15]
[393780892,1762979440787,-1000.0,0.00036468,30]
[393780893,1762979440796,-1000.5618557,0.00036468,30]
[393780894,1762979440806,-1000.59037472,0.00036468,30]
[393780895,1762979440816,-1000.0,0.00036468,30]
[393780896,1762979440826,-268.34,0.00036497,2]
[393780897,1762979440835,-152.0,0.000365,3]
[393780898,1762979440844,-166.66,0.0003664,30]
[393780899,1762979440854,-196.23949712,0.00036706,5]
[393780900,1762979440863,-875.89,0.00036743,5]
[393780901,1762979440872,-1117.39214498,0.00036775,2]
[393780902,1762979440881,-1588.66761652,0.000368,2]
[393780903,1762979440891,-5000.0,0.00036821,2]
[393780904,1762979440900,-679.37142996,0.00036843,2]
[393780905,1762979440910,-501.50368133,0.0003685,5]
[393780906,1762979440919,-500.0,0.0003685,5]
[393780907,1762979440928,-2500.0,0.00036875,2]
[393780908,1762979440937,-25000.0,0.00036884,2]
[393780909,1762979440947,-4615.76,0.00036912,2]
[393780910,1762979440958,-500.0,0.00036973,5]